[Event "Live Chess"]
[Site "Chess.com"]
[Date "2023.05.20"]
[Round "-"]
[White "SavagePawn7"]
[Black "daniel9395"]
[Result "0-1"]
[WhiteElo "776"]
[BlackElo "578"]
[TimeControl "300"]
[EndTime "9:47:05 PDT"]
[Termination "daniel9395 won on time"]

1. e4 {[%clk 0:04:57.2]} 1... d5 {[%clk 0:04:56.2]} 2. d4 {[%clk 0:04:55.3]}
2... dxe4 {[%clk 0:04:50.4]} 3. Nc3 {[%clk 0:04:54.1]} 3... Nf6 {[%clk
0:04:47.7]} 4. f3 {[%clk 0:04:52.5]} 4... Nc6 {[%clk 0:04:40.9]} 5. Be3 {[%clk
0:04:36.7]} 5... exf3 {[%clk 0:04:33.7]} 6. Qxf3 {[%clk 0:04:31.5]} 6... Bg4
{[%clk 0:04:21.5]} 7. Qg3 {[%clk 0:04:13.7]} 7... e6 {[%clk 0:04:15.7]} 8. Be2
{[%clk 0:04:08.4]} 8... h5 {[%clk 0:03:54.9]} 9. Bxg4 {[%clk 0:04:04]} 9... hxg4
{[%clk 0:03:53.6]} 10. h3 {[%clk 0:03:57.4]} 10... g5 {[%clk 0:03:49.6]} 11.
O-O-O {[%clk 0:03:51.6]} 11... Bd6 {[%clk 0:03:47.4]} 12. Qf2 {[%clk 0:03:43]}
12... g3 {[%clk 0:03:38.5]} 13. Qf1 {[%clk 0:03:24.6]} 13... Nd5 {[%clk
0:03:34.2]} 14. Nxd5 {[%clk 0:03:22.4]} 14... exd5 {[%clk 0:03:32]} 15. Nf3
{[%clk 0:03:06.6]} 15... f6 {[%clk 0:03:26.7]} 16. h4 {[%clk 0:02:54.6]} 16...
g4 {[%clk 0:03:18.6]} 17. Nd2 {[%clk 0:02:46.7]} 17... Qe7 {[%clk 0:03:14]} 18.
Re1 {[%clk 0:02:44.2]} 18... O-O-O {[%clk 0:03:11.9]} 19. Bg5 {[%clk 0:02:14.2]}
19... fxg5 {[%clk 0:03:10]} 20. Rxe7 {[%clk 0:02:11.9]} 20... Bxe7 {[%clk
0:03:09.2]} 21. hxg5 {[%clk 0:02:08.6]} 21... Bxg5 {[%clk 0:03:05.4]} 22. Rxh8
{[%clk 0:02:04.1]} 22... Rxh8 {[%clk 0:03:03.4]} 23. Qf5+ {[%clk 0:02:00.4]}
23... Kd8 {[%clk 0:02:50.5]} 24. Qxg5+ {[%clk 0:01:57.9]} 24... Kd7 {[%clk
0:02:47.3]} 25. Qxg4+ {[%clk 0:01:51.6]} 25... Ke7 {[%clk 0:02:40.2]} 26. Qxg3
{[%clk 0:01:39.8]} 26... Rh1+ {[%clk 0:02:38.5]} 27. Nf1 {[%clk 0:01:26.5]}
27... Rxf1+ {[%clk 0:02:36.7]} 28. Kd2 {[%clk 0:01:23.5]} 28... Nxd4 {[%clk
0:02:30.2]} 29. Qe3+ {[%clk 0:01:19.1]} 29... Kd6 {[%clk 0:02:20]} 30. Qxd4
{[%clk 0:01:14.9]} 30... c5 {[%clk 0:02:19.1]} 31. Qg7 {[%clk 0:01:04.1]} 31...
b5 {[%clk 0:02:09.6]} 32. Qxa7 {[%clk 0:01:02]} 32... c4 {[%clk 0:02:00.3]} 33.
Qb8+ {[%clk 0:00:58.4]} 33... Kc5 {[%clk 0:01:54.2]} 34. Qa7+ {[%clk 0:00:52.9]}
34... Kc6 {[%clk 0:01:50]} 35. b3 {[%clk 0:00:39.9]} 35... b4 {[%clk 0:01:43.3]}
36. c3 {[%clk 0:00:35.1]} 36... d4 {[%clk 0:01:31.2]} 37. cxb4 {[%clk
0:00:32.4]} 37... c3+ {[%clk 0:01:29.3]} 38. Kd3 {[%clk 0:00:31]} 38... Rd1+
{[%clk 0:01:24]} 39. Kc4 {[%clk 0:00:29.6]} 39... c2 {[%clk 0:01:06.7]} 40. Qc5+
{[%clk 0:00:26.1]} 40... Kd7 {[%clk 0:01:04.5]} 41. Qd5+ {[%clk 0:00:19.6]}
41... Kc7 {[%clk 0:01:03.3]} 42. Qc5+ {[%clk 0:00:18]} 42... Kd8 {[%clk
0:01:00.9]} 43. Qd6+ {[%clk 0:00:16]} 43... Ke8 {[%clk 0:00:59.8]} 44. Kc5
{[%clk 0:00:12.1]} 44... c1=Q+ {[%clk 0:00:56.5]} 45. Kd5 {[%clk 0:00:10.5]}
45... Qg5+ {[%clk 0:00:53.7]} 46. Kc6 {[%clk 0:00:07.6]} 46... Rc1+ {[%clk
0:00:46.7]} 47. Kb7 {[%clk 0:00:03.7]} 47... Qxg2+ {[%clk 0:00:41.9]} 0-1

[Event "Live Chess"]
[Site "Chess.com"]
[Date "2023.05.20"]
[Round "-"]
[White "PackedNote"]
[Black "ChessTWSS"]
[Result "0-1"]
[WhiteElo "781"]
[BlackElo "1711"]
[TimeControl "300"]
[EndTime "9:47:07 PDT"]
[Termination "ChessTWSS won by checkmate"]

1. d4 {[%clk 0:04:59.8]} 1... d5 {[%clk 0:04:52.3]} 2. Bf4 {[%clk 0:04:59.2]}
2... c5 {[%clk 0:04:47.4]} 3. c3 {[%clk 0:04:54.5]} 3... Nc6 {[%clk 0:04:42.8]}
4. Nf3 {[%clk 0:04:51.4]} 4... e6 {[%clk 0:04:37.3]} 5. e3 {[%clk 0:04:48.6]}
5... Bd6 {[%clk 0:04:33.5]} 6. Bxd6 {[%clk 0:04:43]} 6... Qxd6 {[%clk
0:04:30.4]} 7. Bb5 {[%clk 0:04:42.1]} 7... Ne7 {[%clk 0:04:16.8]} 8. O-O {[%clk
0:04:34.4]} 8... O-O {[%clk 0:04:13]} 9. Nbd2 {[%clk 0:04:32.7]} 9... a6 {[%clk
0:03:56.4]} 10. Bd3 {[%clk 0:04:24.4]} 10... h6 {[%clk 0:03:42]} 11. a3 {[%clk
0:04:14]} 11... c4 {[%clk 0:03:32.4]} 12. Bc2 {[%clk 0:04:09.6]} 12... b5 {[%clk
0:03:28.6]} 13. b3 {[%clk 0:04:07.4]} 13... e5 {[%clk 0:03:20.7]} 14. bxc4
{[%clk 0:03:52.7]} 14... bxc4 {[%clk 0:03:17.1]} 15. Re1 {[%clk 0:03:36.7]}
15... e4 {[%clk 0:03:10.7]} 16. Nh4 {[%clk 0:03:28.7]} 16... g5 {[%clk
0:03:05.6]} 17. f4 {[%clk 0:03:12.7]} 17... gxh4 {[%clk 0:03:01.2]} 18. g3
{[%clk 0:03:08.9]} 18... hxg3 {[%clk 0:02:57.3]} 19. hxg3 {[%clk 0:03:08.8]}
19... Qg6 {[%clk 0:02:53.4]} 20. Kg2 {[%clk 0:03:05.3]} 20... a5 {[%clk
0:02:39.1]} 21. Ba4 {[%clk 0:02:49.6]} 21... Bg4 {[%clk 0:02:34]} 22. Qc1 {[%clk
0:02:40.8]} 22... Bf3+ {[%clk 0:02:25.8]} 23. Nxf3 {[%clk 0:02:36.8]} 23...
exf3+ {[%clk 0:02:22.8]} 24. Kxf3 {[%clk 0:02:36.2]} 24... Qh5+ {[%clk
0:02:18.9]} 25. Kf2 {[%clk 0:02:34.7]} 25... Qh2+ {[%clk 0:02:14.3]} 26. Kf3
{[%clk 0:02:30.9]} 26... Nf5 {[%clk 0:02:07.3]} 27. Re2 {[%clk 0:02:17.4]} 27...
Qxg3# {[%clk 0:02:02]} 0-1

[Event "Live Chess"]
[Site "Chess.com"]
[Date "2023.05.20"]
[Round "-"]
[White "onemoretime1975"]
[Black "Doge_Dandolo"]
[Result "0-1"]
[WhiteElo "1934"]
[BlackElo "2131"]
[TimeControl "300"]
[EndTime "9:47:16 PDT"]
[Termination "Doge_Dandolo won on time"]

1. e4 {[%clk 0:04:58.2]} 1... c6 {[%clk 0:04:58.2]} 2. d4 {[%clk 0:04:56.5]}
2... d5 {[%clk 0:04:56.2]} 3. exd5 {[%clk 0:04:55.5]} 3... cxd5 {[%clk
0:04:55.1]} 4. Nf3 {[%clk 0:04:53.5]} 4... Nc6 {[%clk 0:04:52.1]} 5. c3 {[%clk
0:04:45.3]} 5... Qc7 {[%clk 0:04:48.3]} 6. Bd3 {[%clk 0:04:42.8]} 6... Bg4
{[%clk 0:04:46.4]} 7. h3 {[%clk 0:04:39.9]} 7... Bxf3 {[%clk 0:04:44.9]} 8. Qxf3
{[%clk 0:04:36.9]} 8... e6 {[%clk 0:04:44.5]} 9. Bf4 {[%clk 0:04:35]} 9... Bd6
{[%clk 0:04:43.2]} 10. Bxd6 {[%clk 0:04:33.7]} 10... Qxd6 {[%clk 0:04:41]} 11.
Nd2 {[%clk 0:04:29]} 11... Nf6 {[%clk 0:04:39.6]} 12. O-O {[%clk 0:04:26.7]}
12... O-O {[%clk 0:04:38.2]} 13. Rfe1 {[%clk 0:04:22.7]} 13... Rab8 {[%clk
0:04:35.7]} 14. a4 {[%clk 0:04:18.9]} 14... Qc7 {[%clk 0:04:29.4]} 15. Qe2
{[%clk 0:04:07.8]} 15... a6 {[%clk 0:04:21.1]} 16. Nf3 {[%clk 0:04:05.6]} 16...
Rfc8 {[%clk 0:04:14.3]} 17. Ne5 {[%clk 0:04:03.2]} 17... Nxe5 {[%clk 0:04:05.6]}
18. dxe5 {[%clk 0:04:01.3]} 18... Nd7 {[%clk 0:04:03.9]} 19. Qh5 {[%clk
0:03:55.6]} 19... Nf8 {[%clk 0:04:02.1]} 20. Re3 {[%clk 0:03:41.9]} 20... b5
{[%clk 0:03:58.5]} 21. axb5 {[%clk 0:03:38.9]} 21... axb5 {[%clk 0:03:56.8]} 22.
Rg3 {[%clk 0:03:30.5]} 22... b4 {[%clk 0:03:51.5]} 23. Qg5 {[%clk 0:03:15]}
23... g6 {[%clk 0:03:46.5]} 24. Bf1 {[%clk 0:02:27.5]} 24... bxc3 {[%clk
0:03:41.6]} 25. Rxc3 {[%clk 0:02:25.4]} 25... Qb7 {[%clk 0:03:29.5]} 26. Rxc8
{[%clk 0:02:18.5]} 26... Rxc8 {[%clk 0:03:26.9]} 27. Rc1 {[%clk 0:01:44.2]}
27... Rb8 {[%clk 0:03:16.4]} 28. Rc2 {[%clk 0:01:38.7]} 28... Qb3 {[%clk
0:03:08.4]} 29. Qd2 {[%clk 0:01:21.9]} 29... Nd7 {[%clk 0:02:56.9]} 30. Qc3
{[%clk 0:01:13.6]} 30... Qxc3 {[%clk 0:02:53.3]} 31. bxc3 {[%clk 0:01:10.5]}
31... Nxe5 {[%clk 0:02:50.5]} 32. f4 {[%clk 0:01:07.8]} 32... Nd7 {[%clk
0:02:40.6]} 33. Kf2 {[%clk 0:01:03.2]} 33... Rc8 {[%clk 0:02:38.8]} 34. Ke3
{[%clk 0:00:58.9]} 34... Kg7 {[%clk 0:02:36.6]} 35. Kd4 {[%clk 0:00:54.1]} 35...
Nb6 {[%clk 0:02:29.9]} 36. g4 {[%clk 0:00:45.2]} 36... Kf6 {[%clk 0:02:15.5]}
37. Bd3 {[%clk 0:00:40.1]} 37... Nc4 {[%clk 0:02:08.8]} 38. g5+ {[%clk
0:00:37.9]} 38... Ke7 {[%clk 0:02:03.9]} 39. h4 {[%clk 0:00:27.6]} 39... Nd6
{[%clk 0:01:56.8]} 40. Ke5 {[%clk 0:00:19.9]} 40... Nc4+ {[%clk 0:01:53.8]} 41.
Kd4 {[%clk 0:00:18.9]} 41... Kd6 {[%clk 0:01:50.4]} 42. Ra2 {[%clk 0:00:16.3]}
42... Rc7 {[%clk 0:01:42]} 43. Ra6+ {[%clk 0:00:14.9]} 43... Kd7 {[%clk
0:01:39.5]} 44. Bc2 {[%clk 0:00:10.3]} 44... Nd6 {[%clk 0:01:36.1]} 45. Ba4+
{[%clk 0:00:08.7]} 45... Ke7 {[%clk 0:01:31.8]} 46. Kd3 {[%clk 0:00:04.6]} 46...
Nf5 {[%clk 0:01:29]} 47. Ra8 {[%clk 0:00:00.1]} 47... Nxh4 {[%clk 0:01:26.4]}
0-1

[Event "Live Chess"]
[Site "Chess.com"]
[Date "2023.05.20"]
[Round "-"]
[White "Zeraora719"]
[Black "LanceMaster23"]
[Result "0-1"]
[WhiteElo "1226"]
[BlackElo "1859"]
[TimeControl "300"]
[EndTime "9:47:19 PDT"]
[Termination "LanceMaster23 won by checkmate"]

1. e4 {[%clk 0:04:56]} 1... c5 {[%clk 0:04:52]} 2. d4 {[%clk 0:04:52]} 2... cxd4
{[%clk 0:04:50.9]} 3. Qxd4 {[%clk 0:04:51]} 3... Nc6 {[%clk 0:04:48.9]} 4. Qd1
{[%clk 0:04:48.6]} 4... Qc7 {[%clk 0:04:47]} 5. g3 {[%clk 0:04:43.5]} 5... f6
{[%clk 0:04:45.3]} 6. Bf4 {[%clk 0:04:41.6]} 6... e5 {[%clk 0:04:37.4]} 7. Be3
{[%clk 0:04:33.3]} 7... d6 {[%clk 0:04:15.1]} 8. Bc4 {[%clk 0:04:28.3]} 8... Na5
{[%clk 0:04:01.7]} 9. Bd5 {[%clk 0:04:25.7]} 9... Ne7 {[%clk 0:03:58.2]} 10. Nc3
{[%clk 0:04:16.4]} 10... Bd7 {[%clk 0:03:46]} 11. Qh5+ {[%clk 0:04:00.5]} 11...
g6 {[%clk 0:03:36.8]} 12. Qh4 {[%clk 0:03:55.7]} 12... Bg7 {[%clk 0:03:11.6]}
13. f4 {[%clk 0:03:51.5]} 13... Nc4 {[%clk 0:03:03.9]} 14. fxe5 {[%clk
0:03:47.6]} 14... Nxe3 {[%clk 0:02:31.7]} 15. exf6 {[%clk 0:03:33.1]} 15... Bxf6
{[%clk 0:02:29.3]} 16. Qxf6 {[%clk 0:03:30.4]} 16... Rf8 {[%clk 0:02:27.2]} 17.
Qg7 {[%clk 0:03:22.6]} 17... Rf1+ {[%clk 0:01:53.2]} 18. Ke2 {[%clk 0:03:16.3]}
18... Bg4+ {[%clk 0:01:51.2]} 19. Kxe3 {[%clk 0:03:12.7]} 19... Qc5+ {[%clk
0:01:35.4]} 20. Kd2 {[%clk 0:03:07.4]} 20... Rxa1 {[%clk 0:01:10.3]} 21. Qh8+
{[%clk 0:03:03.2]} 21... Kd7 {[%clk 0:01:08.3]} 22. Qxa8 {[%clk 0:02:54.1]}
22... Qd4# {[%clk 0:01:07.3]} 0-1

[Event "Live Chess"]
[Site "Chess.com"]
[Date "2023.05.20"]
[Round "-"]
[White "Hacker_2009"]
[Black "JanMur7"]
[Result "0-1"]
[WhiteElo "1906"]
[BlackElo "1987"]
[TimeControl "300"]
[EndTime "9:47:33 PDT"]
[Termination "JanMur7 won by resignation"]

1. d4 {[%clk 0:04:58.4]} 1... Nf6 {[%clk 0:04:59]} 2. Nf3 {[%clk 0:04:57.2]}
2... e6 {[%clk 0:04:57.8]} 3. c4 {[%clk 0:04:55.5]} 3... d5 {[%clk 0:04:54.9]}
4. e3 {[%clk 0:04:53.4]} 4... Be7 {[%clk 0:04:53.7]} 5. Nc3 {[%clk 0:04:51.3]}
5... O-O {[%clk 0:04:52.3]} 6. b3 {[%clk 0:04:50.2]} 6... b6 {[%clk 0:04:51.3]}
7. Bb2 {[%clk 0:04:49.2]} 7... Bb7 {[%clk 0:04:50.5]} 8. Rc1 {[%clk 0:04:47.5]}
8... Nbd7 {[%clk 0:04:48.6]} 9. cxd5 {[%clk 0:04:46.3]} 9... Nxd5 {[%clk
0:04:46.2]} 10. Nxd5 {[%clk 0:04:45.2]} 10... Bxd5 {[%clk 0:04:43.6]} 11. Be2
{[%clk 0:04:44.6]} 11... c5 {[%clk 0:04:42]} 12. O-O {[%clk 0:04:42.8]} 12...
Bf6 {[%clk 0:04:38.3]} 13. Qd2 {[%clk 0:04:41]} 13... cxd4 {[%clk 0:04:35.9]}
14. Nxd4 {[%clk 0:04:39.3]} 14... Nc5 {[%clk 0:04:34.5]} 15. Rfd1 {[%clk
0:04:25.6]} 15... Rc8 {[%clk 0:04:02.3]} 16. Nb5 {[%clk 0:04:22.1]} 16... Bxb2
{[%clk 0:03:40.4]} 17. Qxb2 {[%clk 0:04:19.8]} 17... Qg5 {[%clk 0:03:37.8]} 18.
g3 {[%clk 0:04:12.1]} 18... a6 {[%clk 0:03:14.9]} 19. Nc3 {[%clk 0:04:08.9]}
19... Bb7 {[%clk 0:03:10]} 20. Bf1 {[%clk 0:04:04.7]} 20... Qf6 {[%clk
0:02:58.1]} 21. Qe2 {[%clk 0:04:00]} 21... b5 {[%clk 0:02:50.4]} 22. Bg2 {[%clk
0:03:58.1]} 22... Bxg2 {[%clk 0:02:47.5]} 23. Kxg2 {[%clk 0:03:55.2]} 23... Nxb3
{[%clk 0:02:44.5]} 24. axb3 {[%clk 0:03:50.4]} 24... Rxc3 {[%clk 0:02:32.9]} 25.
Rxc3 {[%clk 0:03:44.3]} 25... Qxc3 {[%clk 0:02:30.4]} 26. Qa2 {[%clk 0:03:43.8]}
26... b4 {[%clk 0:02:21.9]} 27. Qxa6 {[%clk 0:03:36.6]} 27... Qxb3 {[%clk
0:02:18.6]} 28. Qd3 {[%clk 0:03:36.2]} 28... Qxd3 {[%clk 0:02:15.8]} 29. Rxd3
{[%clk 0:03:36.1]} 29... Rb8 {[%clk 0:02:13.5]} 30. Rb3 {[%clk 0:03:36]} 30...
Kf8 {[%clk 0:02:11.6]} 31. Kf3 {[%clk 0:03:35.9]} 31... Ke7 {[%clk 0:02:11.1]}
32. Ke4 {[%clk 0:03:35.8]} 32... Kd6 {[%clk 0:02:10.6]} 33. Kd4 {[%clk
0:03:32.8]} 33... g5 {[%clk 0:02:06]} 34. f4 {[%clk 0:03:30.1]} 34... g4 {[%clk
0:02:01.8]} 35. e4 {[%clk 0:03:19.8]} 35... e5+ {[%clk 0:01:56.7]} 36. fxe5+
{[%clk 0:03:17.6]} 36... Ke6 {[%clk 0:01:55.6]} 37. Kd3 {[%clk 0:03:03]} 37...
Kxe5 {[%clk 0:01:52.6]} 38. Ke3 {[%clk 0:03:01.4]} 38... h5 {[%clk 0:01:44.3]}
39. Kd3 {[%clk 0:02:59.7]} 39... Rd8+ {[%clk 0:01:41.8]} 40. Ke3 {[%clk
0:02:58.9]} 40... Rd4 {[%clk 0:01:40.2]} 41. Rb1 {[%clk 0:02:46.9]} 41... Rxe4+
{[%clk 0:01:32.7]} 42. Kf2 {[%clk 0:02:46.4]} 42... Rc4 {[%clk 0:01:26.4]} 43.
Rb2 {[%clk 0:02:43.5]} 43... Kd4 {[%clk 0:01:24.9]} 0-1

[Event "Live Chess"]
[Site "Chess.com"]
[Date "2023.05.20"]
[Round "-"]
[White "grillage"]
[Black "JackRudd"]
[Result "1-0"]
[WhiteElo "1856"]
[BlackElo "2383"]
[TimeControl "300"]
[EndTime "9:47:49 PDT"]
[Termination "grillage won by resignation"]

1. d4 {[%clk 0:04:56]} 1... Nf6 {[%clk 0:04:58.6]} 2. Nc3 {[%clk 0:04:54.3]}
2... d5 {[%clk 0:04:57.3]} 3. Bf4 {[%clk 0:04:53.5]} 3... c5 {[%clk 0:04:55.3]}
4. e4 {[%clk 0:04:52.4]} 4... dxe4 {[%clk 0:04:52.2]} 5. dxc5 {[%clk 0:04:49.1]}
5... Qa5 {[%clk 0:04:48.4]} 6. Bb5+ {[%clk 0:04:16]} 6... Bd7 {[%clk 0:04:46.3]}
7. Bxd7+ {[%clk 0:04:13.5]} 7... Nbxd7 {[%clk 0:04:44.6]} 8. Ne2 {[%clk
0:04:08.1]} 8... e5 {[%clk 0:04:41.9]} 9. Bd2 {[%clk 0:04:05.9]} 9... Qxc5
{[%clk 0:04:38.3]} 10. O-O {[%clk 0:04:00.8]} 10... Qc6 {[%clk 0:04:36.5]} 11.
Ng3 {[%clk 0:03:55.4]} 11... Nc5 {[%clk 0:04:34.3]} 12. Be3 {[%clk 0:03:44.3]}
12... Rd8 {[%clk 0:04:30.4]} 13. Qe2 {[%clk 0:03:40.7]} 13... a6 {[%clk
0:04:29.3]} 14. h3 {[%clk 0:03:38]} 14... Ne6 {[%clk 0:04:26.7]} 15. Rad1 {[%clk
0:03:34.4]} 15... Rxd1 {[%clk 0:04:21.7]} 16. Rxd1 {[%clk 0:03:33]} 16... Bb4
{[%clk 0:04:20.6]} 17. Bd2 {[%clk 0:03:07.6]} 17... Nd4 {[%clk 0:04:16.9]} 18.
Qe3 {[%clk 0:02:39.7]} 18... Nxc2 {[%clk 0:04:09]} 19. Qg5 {[%clk 0:02:38.2]}
19... h6 {[%clk 0:04:04]} 20. Qxe5+ {[%clk 0:02:35.7]} 20... Qe6 {[%clk
0:03:57.9]} 21. Qb8+ {[%clk 0:02:34.3]} 1-0

[Event "Live Chess"]
[Site "Chess.com"]
[Date "2023.05.20"]
[Round "-"]
[White "ReeceHockton"]
[Black "Hussamalhaidar"]
[Result "0-1"]
[WhiteElo "321"]
[BlackElo "970"]
[TimeControl "300"]
[EndTime "9:47:59 PDT"]
[Termination "Hussamalhaidar won by resignation"]

1. d4 {[%clk 0:04:56]} 1... e5 {[%clk 0:04:54.4]} 2. dxe5 {[%clk 0:04:52.5]}
2... d6 {[%clk 0:04:53.9]} 3. exd6 {[%clk 0:04:50]} 3... Bxd6 {[%clk 0:04:52.8]}
4. Nf3 {[%clk 0:04:43.9]} 4... Nc6 {[%clk 0:04:52]} 5. e4 {[%clk 0:04:41.9]}
5... Bg4 {[%clk 0:04:43.5]} 6. Be2 {[%clk 0:04:39.2]} 6... Nf6 {[%clk 0:04:38]}
7. h3 {[%clk 0:04:36.5]} 7... Bh5 {[%clk 0:04:32.8]} 8. g4 {[%clk 0:04:32.2]}
8... Bg6 {[%clk 0:04:29.7]} 9. Bd3 {[%clk 0:04:25.8]} 9... Qe7 {[%clk
0:04:27.2]} 10. Nbd2 {[%clk 0:04:20.6]} 10... O-O-O {[%clk 0:04:25.5]} 11. b3
{[%clk 0:04:16.4]} 11... Kb8 {[%clk 0:04:21.1]} 12. Bb2 {[%clk 0:04:13.9]} 12...
Nxe4 {[%clk 0:04:05.8]} 13. Bxe4 {[%clk 0:04:10.4]} 13... Bxe4 {[%clk
0:03:52.7]} 14. O-O {[%clk 0:04:03.9]} 14... Bg6 {[%clk 0:03:34.3]} 15. Re1
{[%clk 0:03:52.3]} 15... Qf8 {[%clk 0:03:20]} 16. Ne5 {[%clk 0:03:39.9]} 16...
Nxe5 {[%clk 0:03:10]} 17. Bxe5 {[%clk 0:03:38.5]} 17... Bb4 {[%clk 0:03:01.2]}
18. Re2 {[%clk 0:03:23.9]} 18... Qc5 {[%clk 0:02:54.4]} 19. a3 {[%clk
0:03:08.7]} 19... Bc3 {[%clk 0:02:50.2]} 20. Ra2 {[%clk 0:03:02.6]} 20... Bxe5
{[%clk 0:02:44.6]} 21. Ne4 {[%clk 0:02:48.4]} 21... Rxd1+ {[%clk 0:02:30.3]} 22.
Kg2 {[%clk 0:02:41.6]} 22... Bxe4+ {[%clk 0:02:26.9]} 23. Rxe4 {[%clk
0:02:39.4]} 23... Qd5 {[%clk 0:02:19.8]} 24. f3 {[%clk 0:02:36.1]} 24... Rd2+
{[%clk 0:02:16.9]} 25. Kh1 {[%clk 0:02:27.8]} 25... Rxc2 {[%clk 0:02:07.7]} 26.
Rxc2 {[%clk 0:02:25.5]} 26... Qd1+ {[%clk 0:02:03.8]} 27. Kg2 {[%clk 0:02:19.1]}
27... Qxc2+ {[%clk 0:02:02.8]} 28. Re2 {[%clk 0:02:14.7]} 0-1

[Event "Live Chess"]
[Site "Chess.com"]
[Date "2023.05.20"]
[Round "-"]
[White "LL220284LL"]
[Black "CocheseUK"]
[Result "1-0"]
[WhiteElo "2405"]
[BlackElo "1117"]
[TimeControl "300"]
[EndTime "9:48:00 PDT"]
[Termination "LL220284LL won by resignation"]

1. g3 {[%clk 0:04:58.7]} 1... d5 {[%clk 0:04:53.6]} 2. Bg2 {[%clk 0:04:58.1]}
2... e5 {[%clk 0:04:52]} 3. c4 {[%clk 0:04:56.6]} 3... c6 {[%clk 0:04:44.8]} 4.
e3 {[%clk 0:04:54.3]} 4... Nf6 {[%clk 0:04:39.2]} 5. d4 {[%clk 0:04:51.2]} 5...
e4 {[%clk 0:04:36]} 6. Nc3 {[%clk 0:04:49.9]} 6... Be6 {[%clk 0:04:24.6]} 7.
Nge2 {[%clk 0:04:48.1]} 7... Be7 {[%clk 0:04:19]} 8. Nf4 {[%clk 0:04:47.2]} 8...
O-O {[%clk 0:04:14]} 9. Nxe6 {[%clk 0:04:45.3]} 9... fxe6 {[%clk 0:04:11.6]} 10.
O-O {[%clk 0:04:45.2]} 10... Nbd7 {[%clk 0:04:06.4]} 11. Bh3 {[%clk 0:04:43.5]}
11... e5 {[%clk 0:03:55.8]} 12. cxd5 {[%clk 0:04:41]} 12... cxd5 {[%clk
0:03:50.5]} 13. Nxd5 {[%clk 0:04:36.7]} 13... Nxd5 {[%clk 0:03:45]} 14. Be6+
{[%clk 0:04:36.1]} 14... Kh8 {[%clk 0:03:36.5]} 15. Bxd5 {[%clk 0:04:36]} 15...
Nf6 {[%clk 0:03:28.2]} 16. Bb3 {[%clk 0:04:34.1]} 16... exd4 {[%clk 0:03:24.8]}
17. Qxd4 {[%clk 0:04:34]} 17... Qxd4 {[%clk 0:03:16.2]} 18. exd4 {[%clk
0:04:33.9]} 18... Rad8 {[%clk 0:03:06.2]} 19. Be3 {[%clk 0:04:33.3]} 19... Ng4
{[%clk 0:02:52.4]} 20. Rac1 {[%clk 0:04:25.7]} 20... Nxe3 {[%clk 0:02:42.8]} 21.
fxe3 {[%clk 0:04:24.7]} 21... Rxf1+ {[%clk 0:02:40.8]} 22. Kxf1 {[%clk
0:04:22.9]} 22... Rd7 {[%clk 0:02:26.5]} 23. Rc8+ {[%clk 0:04:18.5]} 23... Bd8
{[%clk 0:02:25.7]} 24. Be6 {[%clk 0:04:15.9]} 24... Rd6 {[%clk 0:02:22.6]} 25.
Bf5 {[%clk 0:04:07.8]} 25... g6 {[%clk 0:02:21.3]} 26. Bxe4 {[%clk 0:04:06.6]}
26... Kg7 {[%clk 0:02:20.3]} 27. Ke2 {[%clk 0:04:05.5]} 27... Bb6 {[%clk
0:02:11.3]} 28. Kd3 {[%clk 0:04:03.8]} 28... h6 {[%clk 0:01:51.4]} 29. Bxb7
{[%clk 0:04:02]} 1-0

[Event "Live Chess"]
[Site "Chess.com"]
[Date "2023.05.20"]
[Round "-"]
[White "jennybobby44"]
[Black "Balu13"]
[Result "1-0"]
[WhiteElo "1855"]
[BlackElo "838"]
[TimeControl "300"]
[EndTime "9:48:03 PDT"]
[Termination "jennybobby44 won by checkmate"]

1. e4 {[%clk 0:04:58.8]} 1... d5 {[%clk 0:04:58.8]} 2. exd5 {[%clk 0:04:57.5]}
2... Qxd5 {[%clk 0:04:58.7]} 3. Nc3 {[%clk 0:04:57.3]} 3... Qa5 {[%clk
0:04:58.1]} 4. d4 {[%clk 0:04:56.1]} 4... Nf6 {[%clk 0:04:56.7]} 5. h3 {[%clk
0:04:55.1]} 5... Bf5 {[%clk 0:04:54.6]} 6. Nf3 {[%clk 0:04:53.9]} 6... Nc6
{[%clk 0:04:52]} 7. Bb5 {[%clk 0:04:36.2]} 7... O-O-O {[%clk 0:04:32.8]} 8. Bxc6
{[%clk 0:04:34.5]} 8... bxc6 {[%clk 0:04:32.3]} 9. O-O {[%clk 0:04:22.1]} 9...
e6 {[%clk 0:04:24]} 10. Qe2 {[%clk 0:04:11.2]} 10... Bd6 {[%clk 0:04:17.2]} 11.
Bd2 {[%clk 0:04:06]} 11... Bxh3 {[%clk 0:03:57.1]} 12. gxh3 {[%clk 0:04:00.2]}
12... Qh5 {[%clk 0:03:56.4]} 13. Ng5 {[%clk 0:03:36.8]} 13... Qg6 {[%clk
0:03:34]} 14. Kh1 {[%clk 0:03:24]} 14... h6 {[%clk 0:03:26.9]} 15. Nge4 {[%clk
0:03:17.4]} 15... Qf5 {[%clk 0:03:12.6]} 16. Kg2 {[%clk 0:02:44.1]} 16... Nh5
{[%clk 0:02:27.3]} 17. Nxd6+ {[%clk 0:02:31.5]} 17... Rxd6 {[%clk 0:02:25.7]}
18. Be3 {[%clk 0:01:37.3]} 18... Rxd4 {[%clk 0:02:20]} 19. Rad1 {[%clk
0:01:23.7]} 19... Rhd8 {[%clk 0:02:05.9]} 20. Rxd4 {[%clk 0:01:22.6]} 20... Rxd4
{[%clk 0:02:04.8]} 21. Rd1 {[%clk 0:01:18.8]} 21... Nf4+ {[%clk 0:01:41]} 22.
Bxf4 {[%clk 0:01:15.6]} 22... Rxf4 {[%clk 0:01:40.3]} 23. Qa6+ {[%clk
0:01:11.5]} 23... Kb8 {[%clk 0:01:34.6]} 24. Rd8# {[%clk 0:01:10.2]} 1-0

[Event "Live Chess"]
[Site "Chess.com"]
[Date "2023.05.20"]
[Round "-"]
[White "JackCheetham1"]
[Black "AwesomeFredster"]
[Result "1-0"]
[WhiteElo "1704"]
[BlackElo "1490"]
[TimeControl "300"]
[EndTime "9:48:07 PDT"]
[Termination "JackCheetham1 won by resignation"]

1. e4 {[%clk 0:04:59]} 1... e5 {[%clk 0:04:58.1]} 2. Nf3 {[%clk 0:04:57.9]} 2...
Nc6 {[%clk 0:04:57.3]} 3. Bb5 {[%clk 0:04:56.9]} 3... a6 {[%clk 0:04:55.9]} 4.
Ba4 {[%clk 0:04:55.8]} 4... Nf6 {[%clk 0:04:54.6]} 5. d3 {[%clk 0:04:54.8]} 5...
d6 {[%clk 0:04:53.4]} 6. c3 {[%clk 0:04:52.4]} 6... Be7 {[%clk 0:04:52.3]} 7. h3
{[%clk 0:04:51.5]} 7... O-O {[%clk 0:04:51.4]} 8. O-O {[%clk 0:04:50.7]} 8... b5
{[%clk 0:04:50.6]} 9. Bc2 {[%clk 0:04:49.3]} 9... Bb7 {[%clk 0:04:49.8]} 10. Re1
{[%clk 0:04:48.5]} 10... Qd7 {[%clk 0:04:46.4]} 11. Nbd2 {[%clk 0:04:46.7]}
11... Rfe8 {[%clk 0:04:43.9]} 12. Nf1 {[%clk 0:04:45.7]} 12... Bf8 {[%clk
0:04:40.7]} 13. Ng3 {[%clk 0:04:43.8]} 13... Ne7 {[%clk 0:04:40]} 14. Bg5 {[%clk
0:04:39.6]} 14... Qe6 {[%clk 0:04:27]} 15. d4 {[%clk 0:04:35.3]} 15... Red8
{[%clk 0:04:21.1]} 16. Bb3 {[%clk 0:04:24.3]} 16... d5 {[%clk 0:04:08.5]} 17.
exd5 {[%clk 0:04:09.3]} 17... Bxd5 {[%clk 0:04:06.3]} 18. Nxe5 {[%clk
0:03:45.6]} 18... Bxb3 {[%clk 0:03:52.3]} 19. axb3 {[%clk 0:03:45.5]} 19... Ng6
{[%clk 0:03:39.5]} 1-0